bitfinex-derivatives/quotes_BNBF0:USTF0_20250330
["timestamp","ask_amount","ask_price","bid_price","bid_amount"]
[1743327796813,1.258053,608.21,607.51,1.0]
[1743327797013,0.28627603,608.3,607.51,1.0]
[1743327797014,1.2580584,608.2,607.51,1.0]
[1743327797208,1.25806381,608.19,607.51,1.0]
[1743327797409,1.25806922,608.18,607.51,1.0]
[1743327797613,1.25807462,608.17,607.51,1.0]
[1743327797813,1.25808003,608.16,607.51,1.0]
[1743327798015,1.25808544,608.15,607.51,1.0]
[1743327798314,1.25809085,608.14,607.51,1.0]
[1743327798516,1.25862216,608.13,607.51,1.0]
[1743327798810,0.32888245,608.12,607.51,1.0]
[1743327826747,0.32888245,608.12,607.38,1.0]
[1743327826949,0.93189618,608.11,607.38,1.0]
[1743327827243,1.26078945,608.1,607.38,1.0]
[1743327827450,1.26079486,608.09,607.38,1.0]
[1743327827648,1.26080027,608.08,607.38,1.0]
[1743327827848,1.26080568,608.07,607.38,1.0]
[1743327828050,1.26081108,608.06,607.38,1.0]
[1743327828245,0.98347259,608.46,607.38,1.0]
[1743327828246,1.26081649,608.05,607.39,0.28632667]
[1743327828450,0.32892572,608.04,607.39,0.28632667]
[1743327829346,0.32892572,608.04,606.26,2.50051246]
[1743327829551,0.32892572,608.04,607.38,1.0]
[1743327829750,0.32892572,608.04,607.39,0.28638675]
[1743327829950,0.32892572,608.04,606.26,2.50051246]
[1743327830149,0.32892572,608.04,607.36,1.0]
[1743327830549,0.9312778,608.03,607.36,1.0]
[1743327830749,0.32893654,608.02,607.36,1.0]
[1743327877981,4.19486193,608.01,607.07,2.50051246]
[1743327878180,4.19486193,608.0,607.08,1.0]
[1743327878483,0.2863844,608.01,607.08,1.0]
[1743327878484,0.32895818,607.98,607.08,1.0]
[1743327878777,4.19486193,607.97,607.08,1.0]
[1743327878978,0.32897442,607.95,607.08,1.0]
[1743327879184,3.70153161,607.94,607.08,1.0]
[1743327879382,0.32899065,607.92,607.08,1.0]
[1743327879582,2.41765475,607.91,607.08,1.0]
[1743327879778,0.32900689,607.89,607.08,1.0]
[1743327879978,0.92986721,607.88,607.08,1.0]
[1743327880184,1.25888492,607.87,607.08,1.0]
[1743327880380,1.25889034,607.86,607.08,1.28646337]
[1743327880584,0.32902854,607.85,607.08,0.28646337]
[1743327880987,0.32902854,607.85,607.08,1.28646337]
[1743327883278,0.32902854,607.85,607.08,1.0]
[1743327883482,0.32902854,607.85,607.08,1.2864504]
[1743327886386,0.32902854,607.85,607.08,1.0]
[1743327886782,0.92948819,607.84,607.08,1.28645394]
[1743327886980,1.25852755,607.83,607.08,1.28645394]
[1743327887283,1.25853297,607.82,607.08,1.28645394]
[1743327887484,1.2583368,607.81,607.08,1.28645394]
[1743327887684,0.32905561,607.8,607.08,1.28645394]
[1743327887885,0.92928518,607.79,607.08,1.28645394]
[1743327888188,1.25827544,607.78,606.37,2.50051246]
[1743327888486,0.32907726,607.76,607.05,1.0]
[1743327888686,0.92891082,607.75,607.05,1.0]
[1743327888888,0.32908809,607.74,607.05,1.0]
[1743327913108,0.32908809,607.74,607.18,1.0]
[1743327973070,0.32908809,607.74,607.17,0.28636083]
[1743327973071,0.32908809,607.74,607.32,1.0]
[1743327994687,5.16183235,608.37,607.32,1.0]
[1743327994892,0.32875811,608.35,607.32,1.0]
[1743327995093,4.19714123,608.34,607.32,1.0]
[1743327995291,4.19714123,608.33,607.32,1.0]
[1743327995487,4.19714123,608.32,607.32,1.0]
[1743327995692,4.66856398,608.31,607.32,1.0]
[1743327995892,0.32879054,608.29,607.32,1.0]
[1743327996087,3.70391501,608.28,607.32,1.0]
[1743327996292,0.32880676,608.26,607.32,1.0]
[1743327996487,0.93116551,608.25,607.32,1.0]
[1743327996693,0.32882297,608.23,607.32,1.0]
[1743327996991,0.93116551,608.22,607.32,1.0]
[1743327997196,1.2599993,608.21,607.32,1.0]
[1743327997493,0.93116551,608.2,607.32,1.0]
[1743327997689,0.32883379,608.21,607.32,1.0]
[1743327997887,0.93122936,608.2,607.32,1.0]
[1743327998194,0.3288446,608.19,607.32,1.0]
[1743328000803,0.3288446,608.19,607.47,1.0]
[1743328003799,0.3288446,608.19,607.6,1.0]
[1743328023711,0.3288446,608.19,607.74,1.0]
[1743328080359,0.3288446,608.19,607.73,0.2860901]
[1743328081365,0.3288446,608.19,607.05,2.50051246]
[1743328081566,0.3288446,608.19,607.61,1.0]
[1743328081767,0.3288446,608.19,607.69,0.2862254]
[1743328082066,0.3288446,608.19,607.34,2.50051246]
[1743328082266,0.3288446,608.19,607.69,0.28616303]
[1743328082668,0.3288446,608.19,607.34,2.50051246]
[1743328082868,0.3288446,608.19,607.61,1.0]
[1743328084669,0.3288446,608.19,607.62,0.28618068]
[1743328085169,0.3288446,608.19,607.55,1.0]
[1743328085366,0.3288446,608.19,607.55,1.28626896]
[1743328085672,0.3288446,608.19,607.55,0.28626896]
[1743328087380,0.3288446,608.19,606.85,2.50051246]
[1743328087580,0.3288446,608.19,607.55,0.28631842]
[1743328087982,0.3288446,608.19,606.85,2.50051246]
[1743328088177,0.3288446,608.19,607.51,1.0]
[1743328090475,0.3288446,608.19,607.52,0.28623717]
[1743328093280,0.3288446,608.19,607.51,1.0]
[1743328093586,0.3288446,608.19,607.52,0.2862254]
[1743328096386,0.3288446,608.19,607.51,1.0]
[1743328096587,0.3288446,608.19,607.52,0.28623129]
[1743328099384,0.3288446,608.19,607.51,1.0]
[1743328129912,0.92720019,608.18,607.36,0.28628427]
[1743328130112,0.32886082,608.16,607.36,0.28628427]
[1743328130411,0.92720019,608.15,607.36,0.28628427]
[1743328130611,0.32886082,608.16,607.36,0.28628427]
[1743328130812,0.92721015,608.15,607.36,0.28628427]
[1743328131011,0.32887164,608.14,607.36,0.28628427]
[1743328132110,0.32887164,608.14,607.38,1.0]
[1743328141816,0.92969095,608.13,607.38,1.0]
[1743328142015,1.2585734,608.12,607.38,1.0]
[1743328142216,0.32888786,608.11,607.38,1.0]
[1743328154922,0.92996023,608.1,607.38,1.0]
[1743328155223,0.32889868,608.09,607.38,1.0]
[1743328157019,0.92979651,608.08,607.38,1.0]
[1743328157223,1.25870601,608.07,607.38,1.0]
[1743328157423,1.25871141,608.06,607.38,1.0]
[1743328157724,1.25871682,608.05,607.38,1.0]
[1743328157917,0.28630311,608.26,607.38,1.0]
[1743328157918,1.25872223,608.04,607.38,1.0]
[1743328158118,1.25872764,608.03,607.38,1.0]
[1743328158424,0.32893654,608.02,607.38,1.0]
[1743328160325,0.9293372,608.01,607.24,1.0]
[1743328160520,1.25828456,608.0,607.24,1.0]
[1743328160720,0.32895277,607.99,607.24,1.0]
[1743328164021,0.31559904,607.99,607.24,1.0]
[1743328172626,0.92874578,607.98,607.24,1.0]
[1743328172829,0.92874578,607.97,607.24,1.0]
[1743328173031,1.25771479,607.96,607.24,1.0]
[1743328173232,0.32897442,607.95,607.24,1.0]
[1743328177037,0.92880522,607.94,607.24,1.0]
[1743328177335,0.32898524,607.93,607.24,1.0]
[1743328182337,0.32898524,607.93,607.11,1.0]
[1743328183740,0.61543682,607.93,607.11,1.0]
[1743328184542,0.92883444,607.92,607.11,1.0]
[1743328184841,0.61543682,607.93,607.11,1.0]
[1743328185141,0.32900148,607.9,607.11,1.0]
[1743328187441,0.92837109,607.89,607.11,1.0]
[1743328187638,1.25738339,607.88,607.11,1.0]
[1743328187841,1.2573888,607.87,607.11,1.0]
[1743328188041,0.32901771,607.87,607.11,1.0]
[1743328210355,0.92874752,607.86,607.11,1.0]
[1743328210558,0.32902854,607.85,607.11,1.0]
[1743328212358,0.92926624,607.84,607.11,1.0]
[1743328212563,0.32903936,607.83,607.11,1.0]
[1743328216268,0.92951928,607.82,607.11,1.0]
[1743328216467,0.32905019,607.81,607.11,1.0]
[1743328216663,2.41581322,607.8,606.74,2.50051246]
[1743328216964,0.32906643,607.78,606.97,1.0]
[1743328217767,0.92914434,607.77,606.97,1.0]
[1743328218068,1.2582216,607.76,606.97,1.0]
[1743328218267,0.32908268,607.75,606.97,1.0]
[1743328219960,0.61559794,607.75,606.97,1.0]
[1743328222463,0.32908268,607.75,606.97,1.0]
[1743328224869,0.93090973,607.74,606.97,1.0]
[1743328225070,1.26000324,607.73,606.97,1.0]
[1743328225268,0.32909892,607.72,606.97,1.0]
[1743328230777,0.9314317,607.71,606.97,1.0]
[1743328230976,0.32910975,607.7,606.97,1.0]
[1743328231180,0.93144454,607.69,606.97,1.0]
[1743328231380,1.26056512,607.68,606.97,1.0]
[1743328231578,1.26057054,607.67,606.97,1.0]
[1743328231776,1.26057596,607.66,606.97,1.0]
[1743328231978,0.32913683,607.65,606.97,1.0]
[1743328233491,0.93114104,607.64,606.97,1.0]
[1743328233685,0.32913683,607.65,606.87,0.28654829]
[1743328233889,0.93114166,607.64,606.87,0.28654829]
[1743328234084,0.32913683,607.65,606.87,0.28654829]
[1743328234385,0.9311655,607.64,606.26,2.50051246]
[1743328234591,0.32915308,607.62,606.83,1.0]
[1743328234784,0.32915308,607.62,606.84,0.28663561]
[1743328235584,0.93070281,607.61,606.84,0.28663561]
[1743328235789,1.25986673,607.6,606.84,0.28663561]
[1743328235989,1.25986429,607.59,606.84,0.28663561]
[1743328236184,0.32916934,607.59,606.84,0.28663561]
[1743328236984,0.93041781,607.58,606.84,0.28663561]
[1743328237285,0.32918017,607.57,606.84,0.28663561]
[1743328237489,0.32918017,607.57,606.26,2.50051246]
[1743328237687,0.32918017,607.57,606.79,1.0]
[1743328237892,0.32918017,607.57,606.79,1.28664978]
[1743328238086,0.32918017,607.57,606.79,1.0]
[1743328242293,0.93020832,607.56,606.79,1.0]
[1743328242498,1.25939933,607.55,606.79,1.0]
[1743328242698,1.25940475,607.54,606.79,1.0]
[1743328242897,0.93020832,607.53,606.79,1.0]
[1743328243102,1.25941558,607.52,606.79,1.0]
[1743328243402,1.259421,607.51,606.79,1.0]
[1743328243700,1.25942642,607.5,606.79,1.0]
[1743328243902,1.25943184,607.49,606.79,1.0]
[1743328244102,0.32922894,607.48,606.79,1.0]
[1743328244395,0.32922894,607.48,606.67,0.28663207]
[1743328246396,0.32922894,607.48,605.77,2.50051246]
[1743328246599,0.32922894,607.48,606.65,1.0]
[1743328247198,0.92885281,607.47,606.65,1.0]
[1743328247399,0.3292452,607.45,606.65,1.0]
[1743328261921,0.28667694,607.44,606.65,1.0]
[1743328262314,0.92688779,607.43,606.65,1.0]
[1743328262520,0.92688779,607.42,606.65,1.0]
[1743328262715,0.28667694,607.44,606.65,1.0]
[1743328262716,1.25615467,607.41,606.65,1.0]
[1743328262916,0.3292723,607.4,606.65,1.0]
[1743328265917,0.92680496,607.39,606.54,0.28667694]
[1743328266116,0.32928857,607.37,606.54,0.28667694]
[1743328266318,0.92680496,607.36,606.54,0.28667694]
[1743328266518,0.32930483,607.34,606.54,0.28667694]
[1743328267622,0.92664186,607.33,606.54,0.28667694]
[1743328267820,0.28667694,607.44,606.54,0.28667694]
[1743328267821,0.32931568,607.32,606.54,0.28667694]
[1743328268221,0.9265494,607.31,605.78,0.33015286]
[1743328268422,0.32933195,607.29,606.52,1.0]
[1743328268617,0.9265494,607.28,606.52,1.0]
[1743328268821,1.25589219,607.27,606.52,1.0]
[1743328269123,1.25589761,607.26,606.52,1.0]
[1743328269323,1.25590304,607.25,606.37,0.28676789]
[1743328269524,1.27674769,607.37,606.37,0.28676789]
[1743328269525,0.32936449,607.23,606.37,0.28676789]
[1743328269723,0.9265494,607.22,606.4,1.0]
[1743328269920,0.32938076,607.2,606.4,1.0]
[1743328274023,0.32938076,607.2,606.54,1.0]
[1743328281724,0.32938076,607.2,606.7,1.0]
[1743328297130,0.32938076,607.2,605.78,0.33015286]
[1743328297330,0.32938076,607.2,606.53,1.0]
[1743328321355,0.32938076,607.2,606.66,1.0]
[1743328342783,0.32938076,607.2,606.82,1.0]
[1743328358686,1.98454156,607.93,606.82,1.0]
[1743328358886,0.32899606,607.91,606.82,1.0]
[1743328359088,4.20033379,607.9,606.82,1.0]
[1743328359292,0.3290123,607.88,606.82,1.0]
[1743328359492,4.20033379,607.87,606.82,1.0]
[1743328359688,0.32902854,607.85,606.82,1.0]
[1743328359887,3.70661138,607.84,606.82,1.0]
[1743328360093,0.32904478,607.82,606.82,1.0]
[1743328360295,3.70661138,607.81,606.82,1.0]
[1743328360495,0.32906102,607.79,606.82,1.0]
[1743328360692,3.70661138,607.78,606.82,1.0]
[1743328360991,0.73539051,608.87,606.82,1.0]
[1743328360992,0.32907726,607.76,606.82,1.0]
[1743328361196,0.93179587,607.75,606.82,1.0]
[1743328361390,0.93179587,607.74,606.82,1.0]
[1743328361691,0.93179587,607.73,606.82,1.0]
[1743328361996,0.93179587,607.72,606.82,1.0]
[1743328362197,0.93179587,607.71,606.82,1.0]
[1743328362391,0.32911517,607.69,606.82,1.0]
[1743328366003,0.93075015,607.68,606.82,1.0]
[1743328366298,0.32913142,607.66,606.82,1.0]
[1743328374707,0.93034989,607.65,606.82,1.0]
[1743328375013,0.32914225,607.64,606.82,1.0]
[1743328377017,0.32914225,607.64,606.98,1.0]
[1743328387434,0.32914225,607.64,607.12,1.0]
[1743328425252,0.32914225,607.64,607.08,0.28643272]
[1743328426459,0.32914225,607.64,606.64,2.50051246]
[1743328426658,0.32914225,607.64,606.65,2.50051246]
[1743328426957,0.32914225,607.64,607.08,0.28651054]
[1743328427157,0.32914225,607.64,606.65,2.50051246]
[1743328428159,0.32914225,607.64,606.61,2.50051246]
[1743328428766,0.32914225,607.64,606.62,0.28651054]
[1743328429456,0.32914225,607.64,606.61,2.50051246]
[1743328429858,0.32914225,607.64,606.62,0.28651644]
[1743328431860,0.32914225,607.64,606.65,2.50051246]
[1743328433060,0.32914225,607.64,606.63,0.28653531]
[1743328435361,0.32914225,607.64,607.06,1.0]
[1743328481302,0.93191143,607.63,607.06,1.0]
[1743328481501,0.93191143,607.62,607.06,1.0]
[1743328481697,0.32914225,607.64,607.06,1.0]
[1743328481897,0.93189304,607.63,607.06,1.0]
[1743328482203,1.26104612,607.62,607.06,1.0]
[1743328482397,0.28649639,607.84,607.06,1.0]
[1743328482398,0.3291585,607.61,607.06,1.0]
[1743328490607,0.3291585,607.61,606.95,0.28650582]
[1743328492602,0.3291585,607.61,606.72,2.50051246]
[1743328492808,0.3291585,607.61,606.93,1.0]
[1743328493004,0.3291585,607.61,606.93,1.28655183]
[1743328495709,0.3291585,607.61,606.93,1.0]
[1743328496110,0.3291585,607.61,606.93,1.28652941]
[1743328496810,0.3291585,607.61,606.93,0.28652941]
[1743328497212,0.93177748,607.6,606.93,0.28652941]
[1743328497413,0.32916934,607.59,606.93,0.28652941]
[1743328498506,0.32916934,607.59,606.61,2.50051246]
[1743328498710,0.32916934,607.59,606.91,1.0]
[1743328509520,0.93073989,607.58,606.91,1.0]
[1743328509723,1.25992006,607.57,606.91,1.0]
[1743328509920,1.25992548,607.56,606.91,1.0]
[1743328510122,0.93073989,607.55,606.91,1.0]
[1743328510322,0.93073989,607.54,606.91,1.0]
[1743328510523,0.93073989,607.53,606.91,1.0]
[1743328510718,1.25994715,607.52,606.91,1.0]
[1743328510919,0.32921268,607.51,606.91,1.0]
[1743328515120,4.1949762,607.5,606.91,1.0]
[1743328515319,4.52419972,607.49,606.18,2.50051246]
[1743328515523,4.1949762,607.48,606.48,1.0]
[1743328515721,4.19422921,607.47,606.48,1.0]
[1743328515920,4.19422921,607.46,606.48,1.0]
[1743328516121,4.19422921,607.45,606.48,1.0]
[1743328516425,4.52347983,607.44,606.48,1.0]
[1743328516621,0.32926146,607.42,606.48,1.0]
[1743328516820,3.70035371,607.41,606.48,1.0]
[1743328517120,0.28672418,607.44,606.48,1.0]
[1743328517121,0.32927772,607.39,606.48,1.0]
[1743328517325,0.93077238,607.38,606.48,1.0]
[1743328517526,0.32929399,607.36,606.48,1.0]
[1743328517726,0.93077238,607.35,606.48,1.0]
[1743328518026,0.93077238,607.34,606.48,1.0]
[1743328518226,0.32931568,607.32,606.48,1.0]
[1743328521026,0.92733074,607.31,606.48,1.0]
[1743328521225,0.32933195,607.29,606.48,1.0]
[1743328521521,0.92682081,607.28,606.48,1.0]
[1743328521727,1.25623836,607.27,606.48,1.0]
[1743328521927,0.28671827,607.37,606.48,1.0]
[1743328521928,1.25642118,607.26,606.48,1.0]
[1743328522122,1.25602413,607.25,606.48,1.0]
[1743328522327,1.25609705,607.24,606.48,1.0]
[1743328522627,0.32936449,607.23,606.48,1.0]
[1743328523927,0.92635927,607.22,606.48,1.0]
[1743328524128,0.32937533,607.21,606.48,1.0]
[1743328536237,0.32937533,607.21,606.62,1.0]
[1743328558358,0.32925604,607.43,606.62,1.0]
[1743328571172,0.32925604,607.43,606.76,1.0]
[1743328594390,0.32925604,607.43,606.89,1.0]
[1743328649726,0.32925604,607.43,607.02,1.0]
[1743328666453,0.32925604,607.43,607.15,1.0]
[1743328676452,0.32925604,607.43,607.02,1.0]
[1743328705784,5.16646443,608.14,607.02,1.0]
[1743328705984,4.20077858,608.13,607.02,1.0]
[1743328706182,5.16646443,608.12,607.02,1.0]
[1743328706386,4.20077858,608.11,607.02,1.0]
[1743328706686,3.70722024,608.1,607.02,1.0]
[1743328706889,3.70722024,608.09,607.02,1.0]
[1743328707186,0.96568585,608.1,607.02,1.0]
[1743328707187,3.70722024,608.08,607.02,1.0]
[1743328707386,4.67290609,608.07,607.02,1.0]
[1743328707585,3.70722024,608.06,607.02,1.0]
[1743328707780,2.42302581,608.05,607.02,1.0]
[1743328707983,2.42302581,608.04,607.02,1.0]
[1743328708186,2.42302581,608.03,607.02,1.0]
[1743328708481,2.42302581,608.02,607.02,1.0]
[1743328708682,2.42302581,608.01,607.02,1.0]
[1743328708986,0.93193443,608.0,607.02,1.0]
[1743328709187,0.93193443,607.99,607.02,1.0]
[1743328709488,0.93193443,607.98,607.02,1.0]
[1743328709688,0.93193443,607.97,607.02,1.0]
[1743328709893,0.93193443,607.96,607.02,1.0]
[1743328710094,0.93193443,607.95,607.02,1.0]
[1743328710394,0.93193443,607.94,607.02,1.0]
[1743328710594,0.28646809,608.01,607.02,1.0]
[1743328710793,0.93200676,608.0,607.02,1.0]
[1743328710994,0.93200676,607.99,607.02,1.0]
[1743328711194,0.93200676,607.98,607.02,1.0]
[1743328711388,0.93200676,607.97,607.02,1.0]
[1743328711592,0.93200676,607.96,607.02,1.0]
[1743328711788,0.93200676,607.95,607.02,1.0]
[1743328711994,0.93200676,607.94,607.02,1.0]
[1743328712190,4.2010782,607.93,607.02,1.0]
[1743328712392,4.2010782,607.92,607.02,1.0]
[1743328712596,4.2010782,607.91,607.02,1.0]
[1743328712797,4.2010782,607.9,607.02,1.0]
[1743328712995,3.70750341,607.89,607.02,1.0]
[1743328713196,3.70750341,607.88,607.02,1.0]
[1743328713493,3.70750341,607.87,607.02,1.0]
[1743328713692,3.70750341,607.86,607.02,1.0]
[1743328713894,0.93200651,607.85,607.02,1.0]
[1743328714095,0.93200651,607.84,607.02,1.0]
[1743328714298,0.93200651,607.83,607.02,1.0]
[1743328714594,0.93200651,607.82,607.02,1.0]
[1743328714798,0.93200651,607.81,607.02,1.0]
[1743328714998,0.93198317,607.8,607.02,1.0]
[1743328715199,0.93198317,607.79,607.02,1.0]
[1743328715399,0.28648224,607.91,607.02,1.0]
[1743328715599,3.70740651,607.9,607.02,1.0]
[1743328715898,3.70740651,607.89,607.02,1.0]
[1743328716099,3.70740651,607.88,607.02,1.0]
[1743328716399,2.42314562,607.87,607.02,1.0]
[1743328716595,0.93197908,607.86,607.02,1.0]
[1743328716796,0.93197908,607.85,607.02,1.0]
[1743328716997,0.93197908,607.84,607.02,1.0]
[1743328717197,0.93197908,607.83,607.02,1.0]
[1743328717409,0.93197908,607.82,607.02,1.0]
[1743328717599,0.93197908,607.81,607.02,1.0]
[1743328717794,0.93197908,607.8,607.02,1.0]
[1743328717994,0.49355241,608.07,607.02,1.0]
[1743328718194,0.28648342,607.91,607.02,1.0]
[1743328718398,3.70747932,607.9,607.02,1.0]
[1743328718599,3.70747932,607.89,607.02,1.0]
[1743328718802,3.70747932,607.88,607.02,1.0]
[1743328718999,3.70747932,607.87,607.02,1.0]
[1743328719199,4.67788817,607.86,607.02,1.0]
[1743328719393,0.93199772,607.85,607.02,1.0]
[1743328719597,0.93199772,607.84,607.02,1.0]
[1743328719800,0.93199772,607.83,607.02,1.0]
[1743328719995,0.93199772,607.82,607.02,1.0]
[1743328720196,0.93199772,607.81,607.02,1.0]
[1743328720498,0.93199772,607.8,607.02,1.0]
[1743328720698,0.49356343,608.03,607.02,1.0]
[1743328721004,0.28648342,607.91,607.02,1.0]
[1743328721205,3.70776526,607.9,607.02,1.0]
[1743328721401,3.70776526,607.89,607.02,1.0]
[1743328721602,2.42341039,607.88,607.02,1.0]
[1743328721798,0.93208092,607.87,607.02,1.0]
[1743328722004,0.93208092,607.86,607.02,1.0]
[1743328722201,0.93208092,607.85,607.02,1.0]
[1743328722505,0.93208092,607.84,607.02,1.0]
[1743328722706,0.93208092,607.83,607.02,1.0]
[1743328723007,0.93208092,607.82,607.02,1.0]
[1743328723306,0.98332364,608.09,607.02,1.0]
[1743328723510,4.20149752,608.08,607.02,1.0]
[1743328723705,4.20149752,608.07,607.02,1.0]
[1743328723903,4.20149752,608.06,607.02,1.0]
[1743328724103,4.20149752,608.05,607.02,1.0]
[1743328724302,4.20149752,608.04,607.02,1.0]
[1743328724503,4.20149752,608.03,607.02,1.0]
[1743328724803,4.20149752,608.02,607.02,1.0]
[1743328725008,4.20149752,608.01,607.02,1.0]
[1743328725208,4.20149752,608.0,607.02,1.0]
[1743328725408,4.20149752,607.99,607.02,1.0]
[1743328725611,4.20149752,607.98,607.02,1.0]
[1743328725911,4.20149752,607.97,607.02,1.0]
[1743328726109,4.20149752,607.96,607.02,1.0]
[1743328726310,3.70794818,607.95,607.02,1.0]
[1743328726610,3.70794818,607.94,607.02,1.0]
[1743328726805,3.70794818,607.93,607.02,1.0]
[1743328727006,3.70794818,607.92,607.02,1.0]
[1743328727306,0.93244973,607.91,607.02,1.0]
[1743328727506,0.93244973,607.9,607.02,1.0]
[1743328727710,0.93244973,607.89,607.02,1.0]
[1743328727911,0.93244973,607.88,607.02,1.0]
[1743328728117,0.93244973,607.87,607.02,1.0]
[1743328728415,0.93244973,607.86,607.02,1.0]
[1743328728616,0.93248421,607.85,607.02,1.0]
[1743328728815,0.28646691,607.94,607.02,1.0]
[1743328729116,3.70969923,607.93,607.02,1.0]
[1743328729414,0.93255606,607.92,607.02,1.0]
[1743328729615,0.93255606,607.91,607.02,1.0]
[1743328729816,0.93255606,607.9,607.02,1.0]
[1743328730016,0.93255606,607.89,607.02,1.0]
[1743328730209,0.93255606,607.88,607.02,1.0]
[1743328730409,0.93255606,607.87,607.02,1.0]
[1743328730615,0.93255606,607.86,607.02,1.0]
[1743328730810,0.93255606,607.85,607.02,1.0]
[1743328731115,0.28647162,607.91,607.02,1.0]
[1743328731315,0.93286613,607.9,607.02,1.0]
[1743328731514,0.93286613,607.89,607.02,1.0]
[1743328731714,0.93286613,607.88,607.02,1.0]
[1743328732020,0.93286613,607.87,607.02,1.0]
[1743328732217,0.93286613,607.86,607.02,1.0]
[1743328732414,0.28647162,607.91,607.02,1.0]
[1743328732715,0.93299783,607.9,607.02,1.0]
[1743328732916,0.93299783,607.89,607.02,1.0]
[1743328733115,0.93299783,607.88,607.02,1.0]
[1743328733416,0.93318627,607.87,607.02,1.0]
[1743328733721,0.93318627,607.86,607.02,1.0]
[1743328733910,0.93318627,607.85,607.02,1.0]
[1743328734115,0.93318627,607.84,607.02,1.0]
[1743328734318,0.93318627,607.83,607.02,1.0]
[1743328734623,0.28644922,607.91,607.02,1.0]
[1743328734912,2.42673054,607.9,607.02,1.0]
[1743328735112,2.42673054,607.89,607.02,1.0]
[1743328735319,2.42673054,607.88,607.02,1.0]
[1743328735519,3.71345124,607.87,607.02,1.0]
[1743328735716,3.71345124,607.86,607.02,1.0]
[1743328735917,3.71345124,607.85,607.02,1.0]
[1743328736116,3.7135399,607.84,607.02,1.0]
[1743328736315,2.42703259,607.83,607.02,1.0]
[1743328736617,0.9333579,607.82,607.02,1.0]
[1743328736818,0.9333579,607.81,607.02,1.0]
[1743328737018,0.9333579,607.8,607.02,1.0]
[1743328737219,0.9333579,607.79,607.02,1.0]
[1743328737418,0.9333579,607.78,607.02,1.0]
[1743328737621,0.9333579,607.77,607.02,1.0]
[1743328737822,0.28647634,607.91,607.02,1.0]
[1743328738024,4.20760086,607.9,607.02,1.0]
[1743328738322,3.71403471,607.89,607.02,1.0]
[1743328738525,4.6861542,607.88,607.02,1.0]
[1743328738725,3.71403471,607.87,607.02,1.0]
[1743328738925,3.71403471,607.86,607.02,1.0]
[1743328739116,3.71403471,607.85,607.02,1.0]
[1743328739319,3.71403471,607.84,607.02,1.0]
[1743328739621,2.42774208,607.83,607.02,1.0]
[1743328739818,0.93374695,607.82,607.02,1.0]
[1743328740117,0.93374695,607.81,607.02,1.0]
[1743328740323,0.93374695,607.8,607.02,1.0]
[1743328740524,0.93374695,607.79,607.02,1.0]
[1743328740825,0.93374695,607.78,607.02,1.0]
[1743328741126,0.93374158,607.77,607.02,1.0]
[1743328741325,0.28647516,607.91,607.02,1.0]
[1743328741626,3.71437486,607.9,607.02,1.0]
[1743328741831,3.71437486,607.89,607.02,1.0]
[1743328742025,3.71437486,607.88,607.02,1.0]
[1743328742227,3.71437486,607.87,607.02,1.0]
[1743328742420,3.71437486,607.86,607.02,1.0]
[1743328742623,0.9337312,607.85,607.02,1.0]
[1743328742831,0.2864728,607.91,607.02,1.0]
[1743328743031,0.93390686,607.9,607.02,1.0]
[1743328743220,0.93390686,607.89,607.02,1.0]
[1743328743420,0.93390686,607.88,607.02,1.0]
[1743328743625,0.93390686,607.87,607.02,1.0]
[1743328743820,0.93390686,607.86,607.02,1.0]
[1743328744120,0.93390686,607.85,607.02,1.0]
[1743328744325,0.93390686,607.84,607.02,1.0]
[1743328744527,0.2864728,607.91,607.02,1.0]
[1743328744727,0.93411379,607.9,607.02,1.0]
[1743328744927,0.93411379,607.89,607.02,1.0]
[1743328745221,0.93411379,607.88,607.02,1.0]